[Event "Late-Titled-Tuesday-Blitz-April-16-2024"]
[Site "Chess.com"]
[Date "2024.04.16"]
[Round "8"]
[White "CrushingKings"]
[Black "Zhigalko_Sergei"]
[Result "0-1"]
[WhiteElo "2590"]
[BlackElo "2907"]
[TimeControl "180+1"]
[EndTime "15:24:48 PDT"]
[Termination "Zhigalko_Sergei won by resignation"]

1. Nf3 {[%clk 0:03:00.9]} 1... d5 {[%clk 0:02:58.5]} 2. g3 {[%clk 0:03:01.6]}
2... c6 {[%clk 0:02:58.9]} 3. Bg2 {[%clk 0:03:02.2]} 3... Bg4 {[%clk 0:02:59.2]}
4. h3 {[%clk 0:03:02.6]} 4... Bh5 {[%clk 0:02:59.2]} 5. O-O {[%clk 0:03:02.6]}
5... e6 {[%clk 0:02:59.8]} 6. d4 {[%clk 0:03:03.3]} 6... Nf6 {[%clk 0:03:00.1]}
7. c4 {[%clk 0:03:04]} 7... Be7 {[%clk 0:03:00.6]} 8. cxd5 {[%clk 0:03:04.4]}
8... exd5 {[%clk 0:02:48.1]} 9. Nc3 {[%clk 0:03:03.4]} 9... O-O {[%clk
0:01:53.3]} 10. Ne5 {[%clk 0:03:03.5]} 10... Nfd7 {[%clk 0:01:33.4]} 11. g4
{[%clk 0:03:00.7]} 11... Nxe5 {[%clk 0:01:29]} 12. dxe5 {[%clk 0:03:01.6]} 12...
Bg6 {[%clk 0:01:28.6]} 13. f4 {[%clk 0:03:02.5]} 13... h6 {[%clk 0:01:03.4]} 14.
f5 {[%clk 0:02:59.8]} 14... Bh7 {[%clk 0:01:03.6]} 15. e4 {[%clk 0:02:52.6]}
15... Nd7 {[%clk 0:01:01.4]} 16. f6 {[%clk 0:02:34.6]} 16... Bc5+ {[%clk
0:00:52.8]} 17. Kh1 {[%clk 0:02:34.9]} 17... g5 {[%clk 0:00:53.3]} 18. Na4
{[%clk 0:01:50.7]} 18... dxe4 {[%clk 0:00:27.1]} 19. b4 {[%clk 0:01:25.3]} 19...
Bxb4 {[%clk 0:00:15.2]} 20. Qb3 {[%clk 0:01:25]} 20... b5 {[%clk 0:00:07.6]} 21.
Qxb4 {[%clk 0:00:46.5]} 21... bxa4 {[%clk 0:00:07.2]} 22. e6 {[%clk 0:00:22.7]}
22... fxe6 {[%clk 0:00:07.2]} 23. Qd6 {[%clk 0:00:23.2]} 23... Rf7 {[%clk
0:00:03.4]} 24. Bb2 {[%clk 0:00:16.8]} 24... Qe8 {[%clk 0:00:03.7]} 25. Rad1
{[%clk 0:00:12.6]} 25... Rc8 {[%clk 0:00:03.8]} 26. h4 {[%clk 0:00:06.3]} 26...
Nf8 {[%clk 0:00:03.5]} 27. h5 {[%clk 0:00:05.6]} 27... c5 {[%clk 0:00:03.1]} 28.
Qe5 {[%clk 0:00:05.4]} 28... Qc6 {[%clk 0:00:02.6]} 29. Rd7 {[%clk 0:00:05.6]}
29... Qxd7 {[%clk 0:00:02.7]} 30. Bc3 {[%clk 0:00:04.7]} 30... Qc7 {[%clk
0:00:03.2]} 0-1

[Event "Late-Titled-Tuesday-Blitz-April-16-2024"]
[Site "Chess.com"]
[Date "2024.04.16"]
[Round "8"]
[White "Orest_Vovk"]
[Black "albi1999"]
[Result "1-0"]
[WhiteElo "2560"]
[BlackElo "2662"]
[TimeControl "180+1"]
[EndTime "15:24:48 PDT"]
[Termination "Orest_Vovk won by checkmate"]

1. g4 {[%clk 0:02:53.4]} 1... e5 {[%clk 0:02:55.8]} 2. g5 {[%clk 0:02:53.4]}
2... d5 {[%clk 0:02:45.4]} 3. Bg2 {[%clk 0:02:49]} 3... c6 {[%clk 0:02:43.1]} 4.
d4 {[%clk 0:02:47.1]} 4... e4 {[%clk 0:02:39.6]} 5. c4 {[%clk 0:02:46.8]} 5...
Be6 {[%clk 0:02:38.7]} 6. Nc3 {[%clk 0:02:46.3]} 6... Be7 {[%clk 0:02:37.7]} 7.
Qb3 {[%clk 0:02:37.9]} 7... Qd7 {[%clk 0:02:36.2]} 8. Bf4 {[%clk 0:02:24.9]}
8... dxc4 {[%clk 0:02:34]} 9. Qc2 {[%clk 0:02:24.1]} 9... f5 {[%clk 0:02:34.3]}
10. e3 {[%clk 0:02:04.6]} 10... Na6 {[%clk 0:02:32.9]} 11. a3 {[%clk 0:02:03.4]}
11... h6 {[%clk 0:02:29.3]} 12. h4 {[%clk 0:02:00.8]} 12... hxg5 {[%clk
0:02:27.5]} 13. hxg5 {[%clk 0:02:01.7]} 13... Rxh1 {[%clk 0:02:27.4]} 14. Bxh1
{[%clk 0:02:02.6]} 14... Bf8 {[%clk 0:02:23.2]} 15. f3 {[%clk 0:02:02]} 15...
exf3 {[%clk 0:02:22]} 16. Nxf3 {[%clk 0:02:02.3]} 16... Bd6 {[%clk 0:02:20.5]}
17. Ne5 {[%clk 0:01:57.7]} 17... Bxe5 {[%clk 0:02:20.6]} 18. Bxe5 {[%clk
0:01:52.8]} 18... O-O-O {[%clk 0:02:20.3]} 19. O-O-O {[%clk 0:01:21.3]} 19...
Ne7 {[%clk 0:02:20]} 20. e4 {[%clk 0:01:17.7]} 20... g6 {[%clk 0:02:16.8]} 21.
d5 {[%clk 0:01:09.3]} 21... cxd5 {[%clk 0:02:11]} 22. exd5 {[%clk 0:01:07.3]}
22... Bf7 {[%clk 0:02:10.5]} 23. Qf2 {[%clk 0:00:39.2]} 23... b6 {[%clk
0:02:08.3]} 24. Qf3 {[%clk 0:00:31.6]} 24... Kb7 {[%clk 0:01:34.5]} 25. Bf6
{[%clk 0:00:18.4]} 25... Nc5 {[%clk 0:00:24.5]} 26. Bxe7 {[%clk 0:00:16.2]}
26... Nb3+ {[%clk 0:00:24.9]} 27. Kc2 {[%clk 0:00:13.1]} 27... Rc8 {[%clk
0:00:21.9]} 28. d6+ {[%clk 0:00:12.4]} 28... Ka6 {[%clk 0:00:22.6]} 29. Rd5
{[%clk 0:00:09.8]} 29... Bxd5 {[%clk 0:00:20.6]} 30. Qxd5 {[%clk 0:00:10]} 30...
Rc5 {[%clk 0:00:21]} 31. Qa8 {[%clk 0:00:08.2]} 31... f4 {[%clk 0:00:18.3]} 32.
Bf3 {[%clk 0:00:06.6]} 32... Nd4+ {[%clk 0:00:17.6]} 33. Kb1 {[%clk 0:00:06]}
33... Qf5+ {[%clk 0:00:15.3]} 34. Be4 {[%clk 0:00:04.5]} 34... Qh3 {[%clk
0:00:15.2]} 35. Qb7+ {[%clk 0:00:03.7]} 35... Ka5 {[%clk 0:00:11.9]} 36. Qxa7#
{[%clk 0:00:04.6]} 1-0

[Event "Late-Titled-Tuesday-Blitz-April-16-2024"]
[Site "Chess.com"]
[Date "2024.04.16"]
[Round "8"]
[White "temus_galaktionov"]
[Black "sergiochess83"]
[Result "1/2-1/2"]
[WhiteElo "2879"]
[BlackElo "2950"]
[TimeControl "180+1"]
[EndTime "15:24:52 PDT"]
[Termination "Game drawn by stalemate"]

1. d4 {[%clk 0:03:00.9]} 1... Nf6 {[%clk 0:02:59.3]} 2. Nf3 {[%clk 0:03:00.2]}
2... d5 {[%clk 0:02:58.6]} 3. c4 {[%clk 0:03:00.1]} 3... e6 {[%clk 0:02:58]} 4.
Nc3 {[%clk 0:03:00.1]} 4... c5 {[%clk 0:02:57.8]} 5. cxd5 {[%clk 0:03:00.1]}
5... Nxd5 {[%clk 0:02:57.4]} 6. e4 {[%clk 0:03:00.1]} 6... Nxc3 {[%clk
0:02:56.7]} 7. bxc3 {[%clk 0:03:01]} 7... cxd4 {[%clk 0:02:57.3]} 8. cxd4 {[%clk
0:03:01.9]} 8... Bb4+ {[%clk 0:02:57.1]} 9. Bd2 {[%clk 0:03:02.6]} 9... Bxd2+
{[%clk 0:02:57.2]} 10. Qxd2 {[%clk 0:03:03.5]} 10... O-O {[%clk 0:02:57.7]} 11.
Bd3 {[%clk 0:03:04.1]} 11... Nc6 {[%clk 0:02:57.2]} 12. Bc2 {[%clk 0:03:04.6]}
12... Bd7 {[%clk 0:02:27.6]} 13. O-O {[%clk 0:03:04.2]} 13... Qa5 {[%clk
0:02:23.9]} 14. Qe3 {[%clk 0:02:55.7]} 14... Rac8 {[%clk 0:02:21.9]} 15. Bb3
{[%clk 0:02:53.2]} 15... Ne7 {[%clk 0:02:10]} 16. Rfc1 {[%clk 0:02:49]} 16...
Ba4 {[%clk 0:02:05.9]} 17. Bc4 {[%clk 0:02:28.8]} 17... Rfd8 {[%clk 0:01:56.8]}
18. h3 {[%clk 0:02:27.6]} 18... h6 {[%clk 0:01:39.6]} 19. Ne5 {[%clk 0:02:24.5]}
19... Nc6 {[%clk 0:01:39.6]} 20. Nxc6 {[%clk 0:02:20.1]} 20... Rxc6 {[%clk
0:01:34.4]} 21. d5 {[%clk 0:02:17.7]} 21... exd5 {[%clk 0:01:29.2]} 22. Bxd5
{[%clk 0:02:18.6]} 22... Rxc1+ {[%clk 0:01:21.4]} 23. Rxc1 {[%clk 0:02:19.5]}
23... Bc6 {[%clk 0:01:20.7]} 24. Bb3 {[%clk 0:01:35.2]} 24... Qe5 {[%clk
0:01:14.4]} 25. f3 {[%clk 0:01:29.3]} 25... Rd4 {[%clk 0:01:04.1]} 26. Rc4
{[%clk 0:01:23.2]} 26... Rxc4 {[%clk 0:00:56.1]} 27. Bxc4 {[%clk 0:01:24.1]}
27... b6 {[%clk 0:00:48.7]} 28. Bb3 {[%clk 0:01:18.4]} 28... g5 {[%clk
0:00:45.9]} 29. Kf2 {[%clk 0:01:12]} 29... Kg7 {[%clk 0:00:45.5]} 30. g3 {[%clk
0:01:12]} 30... Qb2+ {[%clk 0:00:43.5]} 31. Qe2 {[%clk 0:01:12.1]} 31... Qd4+
{[%clk 0:00:41.4]} 32. Qe3 {[%clk 0:01:12.5]} 32... Qe5 {[%clk 0:00:34.5]} 33.
Qd3 {[%clk 0:01:05.9]} 33... h5 {[%clk 0:00:22.3]} 34. Qc4 {[%clk 0:00:59.5]}
34... Be8 {[%clk 0:00:07.7]} 35. Qd5 {[%clk 0:00:59.3]} 35... Qxd5 {[%clk
0:00:03.1]} 36. Bxd5 {[%clk 0:01:00.2]} 36... Kf6 {[%clk 0:00:03.6]} 37. f4
{[%clk 0:00:59.2]} 37... gxf4 {[%clk 0:00:03.6]} 38. gxf4 {[%clk 0:01:00.1]}
38... Bd7 {[%clk 0:00:03.5]} 39. h4 {[%clk 0:01:00.3]} 39... Be6 {[%clk
0:00:03.7]} 40. Bxe6 {[%clk 0:00:53]} 40... Kxe6 {[%clk 0:00:04.6]} 41. Ke3
{[%clk 0:00:52.8]} 41... f6 {[%clk 0:00:04.6]} 42. Kd4 {[%clk 0:00:52.7]} 42...
Kd6 {[%clk 0:00:05.2]} 43. Kc4 {[%clk 0:00:53]} 43... a6 {[%clk 0:00:05]} 44. a4
{[%clk 0:00:48.5]} 44... Kc6 {[%clk 0:00:05.3]} 45. Kb4 {[%clk 0:00:48]} 45...
b5 {[%clk 0:00:05.1]} 46. axb5+ {[%clk 0:00:41.4]} 46... axb5 {[%clk 0:00:06]}
47. e5 {[%clk 0:00:42]} 47... fxe5 {[%clk 0:00:06.2]} 48. fxe5 {[%clk
0:00:42.9]} 48... Kd5 {[%clk 0:00:06.6]} 49. Kxb5 {[%clk 0:00:43.8]} 49... Kxe5
{[%clk 0:00:07.1]} 50. Kc4 {[%clk 0:00:44.7]} 50... Kf4 {[%clk 0:00:08]} 51. Kd3
{[%clk 0:00:45.1]} 51... Kg4 {[%clk 0:00:08.9]} 52. Ke2 {[%clk 0:00:45.4]} 52...
Kxh4 {[%clk 0:00:09.8]} 53. Kf2 {[%clk 0:00:46.2]} 53... Kh3 {[%clk 0:00:10.5]}
54. Kg1 {[%clk 0:00:47.1]} 54... h4 {[%clk 0:00:11.1]} 55. Kh1 {[%clk 0:00:48]}
55... Kg3 {[%clk 0:00:12]} 56. Kg1 {[%clk 0:00:48.9]} 56... h3 {[%clk
0:00:12.9]} 57. Kh1 {[%clk 0:00:49.8]} 57... h2 {[%clk 0:00:13.7]} 1/2-1/2

[Event "Late-Titled-Tuesday-Blitz-April-16-2024"]
[Site "Chess.com"]
[Date "2024.04.16"]
[Round "8"]
[White "Viktoker"]
[Black "duone"]
[Result "0-1"]
[WhiteElo "2463"]
[BlackElo "2342"]
[TimeControl "180+1"]
[EndTime "15:24:52 PDT"]
[Termination "duone won by checkmate"]

1. e4 {[%clk 0:03:00.9]} 1... c5 {[%clk 0:02:59.3]} 2. Nf3 {[%clk 0:03:00.2]}
2... d6 {[%clk 0:02:59.2]} 3. d4 {[%clk 0:03:00.5]} 3... cxd4 {[%clk 0:03:00.1]}
4. Nxd4 {[%clk 0:03:01.3]} 4... Nf6 {[%clk 0:03:00.6]} 5. Nc3 {[%clk 0:03:01.6]}
5... a6 {[%clk 0:03:01.1]} 6. Qe2 {[%clk 0:03:01.5]} 6... e5 {[%clk 0:02:58.3]}
7. Nf5 {[%clk 0:03:01.4]} 7... g6 {[%clk 0:02:55.4]} 8. Ne3 {[%clk 0:02:51.3]}
8... Bg7 {[%clk 0:02:55.1]} 9. Ned5 {[%clk 0:02:51.7]} 9... Nxd5 {[%clk
0:02:53.5]} 10. Nxd5 {[%clk 0:02:52.6]} 10... Be6 {[%clk 0:02:53.9]} 11. Qd1
{[%clk 0:02:43.3]} 11... O-O {[%clk 0:02:52.5]} 12. Bc4 {[%clk 0:02:43]} 12...
Nd7 {[%clk 0:02:46.3]} 13. Ne3 {[%clk 0:02:32.3]} 13... Qc7 {[%clk 0:02:41.2]}
14. Bd5 {[%clk 0:02:29.6]} 14... Nf6 {[%clk 0:02:38.2]} 15. c4 {[%clk
0:02:23.3]} 15... Nxd5 {[%clk 0:02:37.9]} 16. exd5 {[%clk 0:02:21.4]} 16... Bd7
{[%clk 0:02:37]} 17. O-O {[%clk 0:02:21]} 17... f5 {[%clk 0:02:37.2]} 18. Qe2
{[%clk 0:02:07.5]} 18... Rac8 {[%clk 0:02:36.4]} 19. b3 {[%clk 0:02:05]} 19...
b5 {[%clk 0:02:33.9]} 20. Bb2 {[%clk 0:01:59]} 20... f4 {[%clk 0:02:32.5]} 21.
Ng4 {[%clk 0:01:57.4]} 21... bxc4 {[%clk 0:02:32.5]} 22. Rac1 {[%clk 0:01:57.1]}
22... Bb5 {[%clk 0:02:32.5]} 23. h4 {[%clk 0:01:40]} 23... c3 {[%clk 0:02:25.8]}
24. Qe1 {[%clk 0:01:27.6]} 24... Bxf1 {[%clk 0:02:24.7]} 25. Rxc3 {[%clk
0:01:26.7]} 25... Qd7 {[%clk 0:02:24.7]} 26. Nh2 {[%clk 0:01:21.7]} 26... Bb5
{[%clk 0:02:23.9]} 27. Nf3 {[%clk 0:01:21.1]} 27... Rxc3 {[%clk 0:02:23.3]} 28.
Qxc3 {[%clk 0:01:20.9]} 28... Rc8 {[%clk 0:02:23.5]} 29. Qb4 {[%clk 0:01:19.2]}
29... Qb7 {[%clk 0:02:20.5]} 30. Qxd6 {[%clk 0:01:17.9]} 30... Qd7 {[%clk
0:02:14.5]} 31. Qb6 {[%clk 0:01:13.9]} 31... Qxd5 {[%clk 0:02:11.8]} 32. Ng5
{[%clk 0:01:11.7]} 32... Qd1+ {[%clk 0:02:10.2]} 33. Kh2 {[%clk 0:01:11.9]}
33... Qg4 {[%clk 0:02:09.3]} 34. Kg1 {[%clk 0:01:03.7]} 34... Bd7 {[%clk
0:01:51.1]} 35. Qd6 {[%clk 0:00:53.2]} 35... h6 {[%clk 0:01:20.7]} 36. f3 {[%clk
0:00:50.6]} 36... Qf5 {[%clk 0:01:18.4]} 37. Ne4 {[%clk 0:00:50.5]} 37... Bc6
{[%clk 0:01:12.4]} 38. Nc5 {[%clk 0:00:39.4]} 38... Qf6 {[%clk 0:01:09.3]} 39.
Qd2 {[%clk 0:00:31.3]} 39... Rd8 {[%clk 0:01:07.1]} 40. Qe2 {[%clk 0:00:31.7]}
40... Bb5 {[%clk 0:01:06]} 41. Qc2 {[%clk 0:00:26.7]} 41... Qc6 {[%clk
0:01:03.6]} 42. b4 {[%clk 0:00:27.1]} 42... Kh7 {[%clk 0:00:49.6]} 43. h5 {[%clk
0:00:26.2]} 43... Rd6 {[%clk 0:00:46.2]} 44. a4 {[%clk 0:00:24.5]} 44... Bd3
{[%clk 0:00:45.4]} 45. Qc3 {[%clk 0:00:21.6]} 45... Bf5 {[%clk 0:00:45.4]} 46.
Qc4 {[%clk 0:00:18.1]} 46... Rd1+ {[%clk 0:00:44.6]} 47. Kh2 {[%clk 0:00:18]}
47... Rd2 {[%clk 0:00:44.9]} 48. Bc3 {[%clk 0:00:14]} 48... Rc2 {[%clk
0:00:42.2]} 49. b5 {[%clk 0:00:14.3]} 49... axb5 {[%clk 0:00:41.8]} 50. axb5
{[%clk 0:00:15.2]} 50... Qf6 {[%clk 0:00:42.2]} 51. Nd3 {[%clk 0:00:10.5]} 51...
Qh4+ {[%clk 0:00:41.2]} 52. Kg1 {[%clk 0:00:10.7]} 52... Bxd3 {[%clk 0:00:41]}
53. Qxd3 {[%clk 0:00:10.4]} 53... Qf2+ {[%clk 0:00:41.2]} 54. Kh2 {[%clk
0:00:10.7]} 54... Qxg2# {[%clk 0:00:42.1]} 0-1

[Event "Late-Titled-Tuesday-Blitz-April-16-2024"]
[Site "Chess.com"]
[Date "2024.04.16"]
[Round "8"]
[White "xasid81"]
[Black "Byniolus"]
[Result "0-1"]
[WhiteElo "2664"]
[BlackElo "2840"]
[TimeControl "180+1"]
[EndTime "15:24:53 PDT"]
[Termination "Byniolus won by resignation"]

1. d4 {[%clk 0:03:00.9]} 1... d6 {[%clk 0:02:59.9]} 2. e4 {[%clk 0:02:58.5]}
2... Nf6 {[%clk 0:02:59.6]} 3. Nc3 {[%clk 0:02:59.2]} 3... c6 {[%clk 0:02:59.7]}
4. Nf3 {[%clk 0:02:59.2]} 4... Bg4 {[%clk 0:02:58.8]} 5. Be2 {[%clk 0:02:58.4]}
5... e6 {[%clk 0:02:58.8]} 6. Bf4 {[%clk 0:02:56.4]} 6... d5 {[%clk 0:02:58.3]}
7. e5 {[%clk 0:02:55.5]} 7... Nfd7 {[%clk 0:02:57.2]} 8. Nd2 {[%clk 0:02:51.2]}
8... Bxe2 {[%clk 0:02:54.2]} 9. Nxe2 {[%clk 0:02:52.1]} 9... c5 {[%clk
0:02:54.2]} 10. O-O {[%clk 0:02:47]} 10... Nc6 {[%clk 0:02:46.5]} 11. c4 {[%clk
0:02:43.3]} 11... Nb6 {[%clk 0:02:33.2]} 12. dxc5 {[%clk 0:02:39.2]} 12... Bxc5
{[%clk 0:02:34.1]} 13. Qc2 {[%clk 0:02:31.3]} 13... Be7 {[%clk 0:02:15.8]} 14.
Rfd1 {[%clk 0:02:20.9]} 14... O-O {[%clk 0:02:13]} 15. a3 {[%clk 0:02:15.4]}
15... Rc8 {[%clk 0:02:12.3]} 16. c5 {[%clk 0:02:13]} 16... Nd7 {[%clk 0:01:59]}
17. b4 {[%clk 0:02:07]} 17... Ncxe5 {[%clk 0:01:54.8]} 18. Qa4 {[%clk
0:01:58.1]} 18... a6 {[%clk 0:01:48.6]} 19. Nd4 {[%clk 0:01:45.5]} 19... Nd3
{[%clk 0:01:39]} 20. c6 {[%clk 0:01:13.3]} 20... bxc6 {[%clk 0:01:19.5]} 21.
Nxc6 {[%clk 0:01:12.6]} 21... Rxc6 {[%clk 0:00:42.8]} 22. Qxc6 {[%clk
0:01:12.1]} 22... Nxf4 {[%clk 0:00:43.5]} 23. Qxa6 {[%clk 0:01:09.1]} 23... h5
{[%clk 0:00:29.5]} 24. Nf3 {[%clk 0:00:59.1]} 24... Qa8 {[%clk 0:00:20.7]} 25.
Qb5 {[%clk 0:00:54.3]} 25... Nf6 {[%clk 0:00:19.6]} 26. g3 {[%clk 0:00:48.7]}
26... Rb8 {[%clk 0:00:12.7]} 27. Qf1 {[%clk 0:00:45.4]} 27... Ng6 {[%clk
0:00:12.9]} 28. Rdc1 {[%clk 0:00:39.6]} 28... Ne4 {[%clk 0:00:12.5]} 29. Qe2
{[%clk 0:00:37]} 29... Bf6 {[%clk 0:00:12.9]} 30. Qa2 {[%clk 0:00:25.4]} 30...
Bxa1 {[%clk 0:00:11.2]} 31. Rxa1 {[%clk 0:00:26.3]} 31... Qa4 {[%clk 0:00:09.5]}
32. Qb2 {[%clk 0:00:21.7]} 32... Ne7 {[%clk 0:00:07.8]} 33. Qe5 {[%clk
0:00:17.9]} 33... Rc8 {[%clk 0:00:07]} 34. Qxh5 {[%clk 0:00:17]} 34... Qc2
{[%clk 0:00:06.4]} 35. Ng5 {[%clk 0:00:15]} 35... Qxf2+ {[%clk 0:00:05.9]} 36.
Kh1 {[%clk 0:00:14.3]} 36... Nxg5 {[%clk 0:00:06.1]} 37. Qxg5 {[%clk 0:00:14.9]}
37... Rc2 {[%clk 0:00:04.5]} 0-1

[Event "Late-Titled-Tuesday-Blitz-April-16-2024"]
[Site "Chess.com"]
[Date "2024.04.16"]
[Round "8"]
[White "Misterfox120"]
[Black "rionelG"]
[Result "1-0"]
[WhiteElo "2393"]
[BlackElo "2192"]
[TimeControl "180+1"]
[EndTime "15:24:54 PDT"]
[Termination "Misterfox120 won by checkmate"]

1. d4 {[%clk 0:02:29.8]} 1... d5 {[%clk 0:02:59.9]} 2. Nc3 {[%clk 0:02:29.8]}
2... e6 {[%clk 0:03:00.3]} 3. e4 {[%clk 0:02:29.4]} 3... Nf6 {[%clk 0:02:59.6]}
4. e5 {[%clk 0:02:29.1]} 4... Nfd7 {[%clk 0:03:00.3]} 5. f4 {[%clk 0:02:29.5]}
5... c5 {[%clk 0:02:59.2]} 6. Nf3 {[%clk 0:02:29.7]} 6... Nc6 {[%clk 0:02:55.3]}
7. Be3 {[%clk 0:02:28.8]} 7... Qb6 {[%clk 0:02:37.2]} 8. Na4 {[%clk 0:02:23.8]}
8... Qa5+ {[%clk 0:02:34.7]} 9. c3 {[%clk 0:02:24]} 9... c4 {[%clk 0:02:17.7]}
10. b4 {[%clk 0:02:17.9]} 10... cxb3 {[%clk 0:02:11.6]} 11. axb3 {[%clk
0:02:18.8]} 11... Qc7 {[%clk 0:02:06.4]} 12. Bd3 {[%clk 0:02:06.9]} 12... Be7
{[%clk 0:01:40.9]} 13. O-O {[%clk 0:01:58.2]} 13... O-O {[%clk 0:01:36.9]} 14.
Qe1 {[%clk 0:01:46.5]} 14... f6 {[%clk 0:01:09.9]} 15. f5 {[%clk 0:01:03]} 15...
exf5 {[%clk 0:01:09.1]} 16. e6 {[%clk 0:00:52.4]} 16... Nb6 {[%clk 0:01:09.1]}
17. Bxf5 {[%clk 0:00:52.2]} 17... Nxa4 {[%clk 0:00:40.2]} 18. Rxa4 {[%clk
0:00:47.3]} 18... g6 {[%clk 0:00:24.7]} 19. Bh3 {[%clk 0:00:46.3]} 19... Re8
{[%clk 0:00:20.8]} 20. c4 {[%clk 0:00:42.1]} 20... dxc4 {[%clk 0:00:20]} 21. d5
{[%clk 0:00:31.8]} 21... Ne5 {[%clk 0:00:18.7]} 22. Nxe5 {[%clk 0:00:29.3]}
22... Qxe5 {[%clk 0:00:19.6]} 23. bxc4 {[%clk 0:00:23.3]} 23... b5 {[%clk
0:00:19.7]} 24. cxb5 {[%clk 0:00:19.1]} 24... Qxd5 {[%clk 0:00:19.2]} 25. Rd4
{[%clk 0:00:17.7]} 25... Qxb5 {[%clk 0:00:18.2]} 26. Rdf4 {[%clk 0:00:15.8]}
26... Bxe6 {[%clk 0:00:16.8]} 27. Bxe6+ {[%clk 0:00:15.2]} 27... Kg7 {[%clk
0:00:17.5]} 28. Bd4 {[%clk 0:00:15.2]} 28... Rf8 {[%clk 0:00:16.8]} 29. Qf2
{[%clk 0:00:14.1]} 29... Qg5 {[%clk 0:00:15.3]} 30. h4 {[%clk 0:00:13.7]} 30...
Qb5 {[%clk 0:00:04.5]} 31. Rxf6 {[%clk 0:00:12.8]} 31... Bxf6 {[%clk 0:00:04.4]}
32. Bxf6+ {[%clk 0:00:12.6]} 32... Kh6 {[%clk 0:00:04.2]} 33. Qf4+ {[%clk
0:00:11.9]} 33... Kh5 {[%clk 0:00:04.6]} 34. g4# {[%clk 0:00:10.6]} 1-0

[Event "Late-Titled-Tuesday-Blitz-April-16-2024"]
[Site "Chess.com"]
[Date "2024.04.16"]
[Round "8"]
[White "kripri"]
[Black "carlsenCamacho"]
[Result "1-0"]
[WhiteElo "2407"]
[BlackElo "2288"]
[TimeControl "180+1"]
[EndTime "15:24:55 PDT"]
[Termination "kripri won on time"]

1. e4 {[%clk 0:02:49.2]} 1... d5 {[%clk 0:02:56.9]} 2. exd5 {[%clk 0:02:49.2]}
2... Qxd5 {[%clk 0:02:57.8]} 3. Nc3 {[%clk 0:02:49.5]} 3... Qd6 {[%clk
0:02:58.4]} 4. d4 {[%clk 0:02:49.3]} 4... Nf6 {[%clk 0:02:58.9]} 5. Bc4 {[%clk
0:02:49.6]} 5... g6 {[%clk 0:02:59.1]} 6. Nf3 {[%clk 0:02:50]} 6... Bg7 {[%clk
0:02:59.7]} 7. O-O {[%clk 0:02:50.5]} 7... O-O {[%clk 0:03:00.3]} 8. Bg5 {[%clk
0:02:50.7]} 8... a6 {[%clk 0:02:57.5]} 9. a4 {[%clk 0:02:49]} 9... Nbd7 {[%clk
0:02:55.5]} 10. Qd2 {[%clk 0:02:49.4]} 10... c5 {[%clk 0:02:51.5]} 11. d5 {[%clk
0:02:47.3]} 11... Ne5 {[%clk 0:02:49.3]} 12. Nxe5 {[%clk 0:02:45.7]} 12... Qxe5
{[%clk 0:02:48.8]} 13. Rfe1 {[%clk 0:02:42.1]} 13... Qf5 {[%clk 0:02:44.4]} 14.
Rxe7 {[%clk 0:02:41.3]} 14... Ng4 {[%clk 0:02:25.9]} 15. h3 {[%clk 0:02:36.4]}
15... Nxf2 {[%clk 0:02:25.5]} 16. Qxf2 {[%clk 0:02:31]} 16... Qxg5 {[%clk
0:02:24.1]} 17. Qe2 {[%clk 0:02:27.3]} 17... Bxh3 {[%clk 0:02:22.8]} 18. d6
{[%clk 0:01:51.3]} 18... Rad8 {[%clk 0:02:10.5]} 19. Ne4 {[%clk 0:01:40.5]}
19... Bd4+ {[%clk 0:02:08.5]} 20. Kh2 {[%clk 0:01:21.9]} 20... Be5+ {[%clk
0:01:21.2]} 21. Rxe5 {[%clk 0:01:06.2]} 21... Qxe5+ {[%clk 0:01:22.1]} 22. Kxh3
{[%clk 0:01:04.9]} 22... Kg7 {[%clk 0:01:07]} 23. Re1 {[%clk 0:00:46.1]} 23...
h5 {[%clk 0:00:50.7]} 24. c3 {[%clk 0:00:28.9]} 24... h4 {[%clk 0:00:48.6]} 25.
Qf2 {[%clk 0:00:21]} 25... Rde8 {[%clk 0:00:36]} 26. Re2 {[%clk 0:00:18.9]}
26... f5 {[%clk 0:00:22.4]} 27. Ng5 {[%clk 0:00:13.2]} 27... Qxd6 {[%clk
0:00:22.2]} 28. Ne6+ {[%clk 0:00:12.8]} 28... Rxe6 {[%clk 0:00:01.8]} 29. Rxe6
{[%clk 0:00:13.7]} 29... Qd7 {[%clk 0:00:02.3]} 30. Kh2 {[%clk 0:00:10]} 30...
b5 {[%clk 0:00:02.6]} 31. axb5 {[%clk 0:00:09.5]} 31... axb5 {[%clk 0:00:03.3]}
32. Ba2 {[%clk 0:00:09.7]} 32... c4 {[%clk 0:00:03.5]} 33. Qe3 {[%clk
0:00:09.2]} 33... Qc7+ {[%clk 0:00:03.3]} 34. Kg1 {[%clk 0:00:08.9]} 34... Rf7
{[%clk 0:00:01.6]} 35. Qd4+ {[%clk 0:00:08.4]} 1-0

[Event "Late-Titled-Tuesday-Blitz-April-16-2024"]
[Site "Chess.com"]
[Date "2024.04.16"]
[Round "8"]
[White "rajesh1464"]
[Black "Boorchess"]
[Result "1-0"]
[WhiteElo "2399"]
[BlackElo "2485"]
[TimeControl "180+1"]
[EndTime "15:24:56 PDT"]
[Termination "rajesh1464 won on time"]

1. d4 {[%clk 0:03:00.9]} 1... Nf6 {[%clk 0:02:59]} 2. c4 {[%clk 0:02:55.2]} 2...
e6 {[%clk 0:02:58.1]} 3. Nf3 {[%clk 0:02:53.8]} 3... c5 {[%clk 0:02:56.5]} 4. g3
{[%clk 0:02:45.7]} 4... b6 {[%clk 0:02:44.8]} 5. Bg2 {[%clk 0:02:45.3]} 5... Bb7
{[%clk 0:02:44.8]} 6. O-O {[%clk 0:02:44.9]} 6... cxd4 {[%clk 0:02:43.5]} 7.
Nxd4 {[%clk 0:02:38.4]} 7... Bxg2 {[%clk 0:02:39.3]} 8. Kxg2 {[%clk 0:02:39.3]}
8... Qc8 {[%clk 0:02:39.9]} 9. b3 {[%clk 0:02:28.1]} 9... Qb7+ {[%clk
0:02:35.2]} 10. f3 {[%clk 0:02:26.6]} 10... Be7 {[%clk 0:02:25.3]} 11. Nc3
{[%clk 0:02:23.8]} 11... Nc6 {[%clk 0:02:14.4]} 12. e4 {[%clk 0:02:21.7]} 12...
O-O {[%clk 0:01:52.5]} 13. Be3 {[%clk 0:02:14.9]} 13... Rfd8 {[%clk 0:01:51.2]}
14. Ndb5 {[%clk 0:02:03]} 14... d6 {[%clk 0:01:41.7]} 15. Qe2 {[%clk 0:01:52.5]}
15... Re8 {[%clk 0:01:29.7]} 16. Rad1 {[%clk 0:01:46.8]} 16... Rad8 {[%clk
0:01:29.2]} 17. Qf2 {[%clk 0:01:45.1]} 17... Ne5 {[%clk 0:01:08.7]} 18. Rd2
{[%clk 0:01:29.4]} 18... d5 {[%clk 0:01:03.8]} 19. Bf4 {[%clk 0:01:18.9]} 19...
Ng6 {[%clk 0:00:57.8]} 20. Bc7 {[%clk 0:01:13.7]} 20... Rd7 {[%clk 0:00:53]} 21.
exd5 {[%clk 0:01:08.7]} 21... exd5 {[%clk 0:00:48.6]} 22. Nxd5 {[%clk
0:00:24.4]} 22... Nxd5 {[%clk 0:00:40]} 23. cxd5 {[%clk 0:00:25.3]} 23... Bc5
{[%clk 0:00:34]} 24. Re1 {[%clk 0:00:18.3]} 24... Rde7 {[%clk 0:00:17.4]} 25.
Rxe7 {[%clk 0:00:17.5]} 25... Rxe7 {[%clk 0:00:17.7]} 26. d6 {[%clk 0:00:17.3]}
26... Rd7 {[%clk 0:00:08.4]} 27. Qe2 {[%clk 0:00:16.4]} 27... Qc6 {[%clk
0:00:05.3]} 28. Qe8+ {[%clk 0:00:15.8]} 28... Nf8 {[%clk 0:00:04.5]} 29. Nxa7
{[%clk 0:00:12.8]} 29... Qb7 {[%clk 0:00:04.1]} 30. Nb5 {[%clk 0:00:12.4]} 30...
Qa6 {[%clk 0:00:03.2]} 31. a4 {[%clk 0:00:11.2]} 31... Qa5 {[%clk 0:00:03.2]}
32. Re2 {[%clk 0:00:10.8]} 32... Qb4 {[%clk 0:00:02.9]} 33. Qc8 {[%clk
0:00:07.5]} 1-0